bitfinex-derivatives/quotes_SOLF0:USTF0_20241211
["timestamp","ask_amount","ask_price","bid_price","bid_amount"]
[1733884143465,2.3256,214.86,214.8,3.02]
[1733884143672,2.0122,214.87,214.8,3.02]
[1733884144168,2.0906,214.9,214.8,3.02]
[1733884145677,2.3253,214.88,214.81,2.3261]
[1733884146163,2.3254,214.87,214.8,5.3462]
[1733884146361,2.0906,214.9,214.8,3.02]
[1733884147369,14.44414631,214.95,214.81,11.44414631]
[1733884147573,2.3251,214.9,214.83,2.3258]
[1733884148570,2.3251,214.9,214.84,2.3257]
[1733884148774,2.3254,214.87,214.81,3.0]
[1733884148970,11.44414631,214.92,214.81,3.0]
[1733884150476,2.3255,214.86,214.81,3.0]
[1733884154679,9.2273,214.96,214.81,3.0]
[1733884154878,11.44414631,214.94,214.81,3.0]
[1733884156672,2.3255,214.87,214.81,3.0]
[1733884161681,2.3253,214.89,214.81,3.0]
[1733884162281,11.44414631,214.94,214.83,2.3258]
[1733884163184,7.3204264,214.91,214.84,2.3257]
[1733884163384,7.3204264,214.87,214.74,2.1198]
[1733884163586,7.3204264,214.87,214.79,7.3204264]
[1733884164483,7.3204264,214.85,214.77,9.6469264]
[1733884165584,7.3204264,214.83,214.76,3.0]
[1733884166088,2.3261,214.81,214.76,3.0]
[1733884166285,7.3204264,214.83,214.76,10.3204264]
[1733884167184,2.9047,214.84,214.78,7.3204264]
[1733884167384,1.3479,214.88,214.78,7.3204264]
[1733884167585,2.3258,214.84,214.78,9.6467264]
[1733884171195,2.3257,214.85,214.8,7.3204264]
[1733884171692,2.3257,214.85,214.8,9.6465264]
[1733884176897,7.3204264,214.82,214.73,5.51317975]
[1733884177106,7.3204264,214.79,214.73,5.51317975]
[1733884177897,2.8241,214.81,214.73,5.51317975]
[1733884178096,2.8241,214.81,214.76,7.3204264]
[1733884179607,2.8241,214.81,214.73,5.51317975]
[1733884179804,7.3204264,214.8,214.73,8.49317975]
[1733884180409,2.3264,214.78,214.73,8.49317975]
[1733884180905,2.3268,214.75,214.7,2.98]
[1733884181104,2.3268,214.75,214.7,10.3004264]
[1733884182103,2.3268,214.75,214.7,7.3204264]
[1733884182305,2.3268,214.75,214.7,10.3004264]
[1733884183307,2.3268,214.75,214.72,5.65379646]
[1733884184406,7.3204264,214.76,214.62,38.25132983]
[1733884184627,7.3204264,214.74,214.66,7.3204264]
[1733884184817,7.3204264,214.74,214.62,38.08912983]
[1733884185004,2.3274,214.69,214.64,7.3204264]
[1733884185211,7.3204264,214.72,214.64,7.3204264]
[1733884185410,7.3204264,214.72,214.63,2.328]
[1733884185614,7.3204264,214.72,214.64,7.3204264]
[1733884186016,2.3274,214.69,214.62,50.71765623]
[1733884186513,2.3273,214.7,214.64,7.3204264]
[1733884187716,2.3274,214.69,214.65,5.60558567]
[1733884188013,2.8759,214.71,214.65,5.60558567]
[1733884188214,2.3273,214.7,214.65,5.60558567]
[1733884189012,2.8759,214.71,214.65,5.60558567]
[1733884189212,7.3204264,214.7,214.65,5.60558567]
[1733884190712,9.6477264,214.7,214.65,5.60558567]
[1733884191414,2.3273,214.7,214.65,5.60558567]
[1733884193717,2.8759,214.71,214.68,7.3204264]
[1733884194018,2.98,214.79,214.7,7.3204264]
[1733884194316,7.3204264,214.78,214.7,7.3204264]
[1733884195313,2.3266,214.76,214.7,7.3204264]
[1733884196712,2.3266,214.76,214.7,9.6476264]
[1733884197322,9.6469264,214.78,214.7,9.6476264]
[1733884197516,7.3204264,214.78,214.7,9.6476264]
[1733884198415,2.3266,214.76,214.7,7.3204264]
[1733884199823,2.3266,214.76,214.7,9.6477264]
[1733884200524,2.8118,214.79,214.73,2.3268]
[1733884200722,2.8118,214.79,214.68,2.98]
[1733884201028,2.8118,214.79,214.73,7.3204264]
[1733884201823,2.3264,214.78,214.71,9.6476264]
[1733884203622,7.3204264,214.78,214.68,2.98]
[1733884203814,7.3204264,214.74,214.65,5.60558567]
[1733884204018,7.3204264,214.72,214.66,7.3204264]
[1733884204226,7.3204264,214.7,214.64,2.98]
[1733884204426,2.98,214.78,214.61,2.98]
[1733884204427,7.3204264,214.68,214.61,2.98]
[1733884204624,7.3204264,214.68,214.61,10.3004264]
[1733884204821,2.3278,214.65,214.61,7.3204264]
[1733884205019,7.3204264,214.66,214.59,10.3004264]
[1733884205423,7.3204264,214.66,214.61,5.61638582]
[1733884205616,7.3204264,214.66,214.59,10.3004264]
[1733884206124,2.3278,214.65,214.59,10.3004264]
[1733884206314,2.3278,214.65,214.59,7.3204264]
[1733884206515,7.3204264,214.66,214.49,0.3247]
[1733884206722,7.3204264,214.64,214.49,0.3247]
[1733884206920,7.3204264,214.6,214.5,2.98]
[1733884207124,7.3204264,214.6,214.52,7.3204264]
[1733884207330,7.3204264,214.62,214.54,7.3204264]
[1733884207818,7.3204264,214.62,214.54,10.3004264]
[1733884208019,7.3204264,214.6,214.52,7.3204264]
[1733884208621,7.3204264,214.6,214.54,5.65557112]
[1733884208820,7.3204264,214.6,214.52,7.3204264]
[1733884209022,2.7813,214.61,214.51,2.98]
[1733884209023,7.3204264,214.58,214.51,2.98]
[1733884209224,7.3204264,214.58,214.5,7.3204264]
[1733884209225,7.3204264,214.56,214.42,0.3247]
[1733884209527,2.3289,214.55,214.48,7.3204264]
[1733884209722,2.3289,214.55,214.47,2.3297]
[1733884210024,4.4646,214.6,214.44,2.98]
[1733884210025,7.3204264,214.52,214.44,2.98]
[1733884210425,7.3204264,214.52,214.43,12.6306264]
[1733884210820,7.3204264,214.5,214.45,5.58273051]
[1733884211223,2.3297,214.48,214.43,2.98]
[1733884211530,14.46117442,214.54,214.43,2.98]
[1733884211728,14.46117442,214.54,214.4,11.48117442]
[1733884211929,14.46117442,214.54,214.41,2.98]
[1733884212419,14.46117442,214.54,214.42,5.51119541]
[1733884212821,2.3296,214.51,214.42,5.51119541]
[1733884213025,4.2444,214.5,214.42,5.51119541]
[1733884213221,2.8037,214.5,214.42,5.51119541]
[1733884213420,2.8037,214.5,214.43,11.48117442]
[1733884213626,11.48117442,214.57,214.43,11.48117442]
[1733884213825,2.8037,214.56,214.43,11.48117442]
[1733884214329,11.48117442,214.54,214.42,5.51119541]
[1733884215230,2.3297,214.5,214.42,5.51119541]
[1733884215533,11.48117442,214.54,214.42,5.51119541]
[1733884217227,2.3298,214.49,214.42,5.51119541]
[1733884217532,11.48117442,214.54,214.42,5.51119541]
[1733884217732,2.3295,214.52,214.44,2.3303]
[1733884219034,2.3293,214.54,214.46,2.3301]
[1733884219331,2.8037,214.56,214.47,2.98]
[1733884219529,2.8037,214.56,214.49,2.3297]
[1733884219732,2.8037,214.56,214.47,2.98]
[1733884220132,2.8037,214.56,214.5,2.3296]
[1733884220327,1.4407,214.6,214.49,11.48117442]
[1733884220628,1.4407,214.6,214.47,2.98]
[1733884220629,2.33002469,214.59,214.52,11.48117442]
[1733884220934,2.33002469,214.59,214.58,2.3288]
[1733884221833,2.33002469,214.59,214.55,11.48117442]
[1733884222637,2.33002469,214.59,214.57,2.3289]
[1733884222934,2.33002469,214.59,214.55,11.48117442]
[1733884223336,2.33002469,214.59,214.58,2.3288]
[1733884226933,2.33002469,214.59,214.58,13.80997442]
[1733884227832,2.8704,214.7,214.58,11.48117442]
[1733884228035,2.8704,214.7,214.61,11.48117442]
[1733884228036,2.3289394,214.69,214.61,11.48117442]
[1733884228335,2.3289394,214.69,214.64,2.3281]
[1733884228536,2.3289394,214.69,214.62,2.98]
[1733884228927,2.3289394,214.69,214.64,2.3281]
[1733884229127,2.3289394,214.69,214.62,2.98]
[1733884229536,2.3279,214.66,214.62,2.98]
[1733884230142,2.3289394,214.69,214.62,2.98]
[1733884230437,13.81011382,214.69,214.55,11.48117442]
[1733884230937,13.81011382,214.69,214.53,43.56906751]
[1733884230938,11.48117442,214.66,214.56,2.98]
[1733884232836,11.48117442,214.63,214.5,48.46]
[1733884233037,11.48117442,214.6,214.5,2.98]
[1733884233232,2.9285,214.59,214.5,2.98]
[1733884235041,2.9285,214.59,214.48,5.3099]
[1733884236034,2.329,214.57,214.48,2.98]
[1733884236238,2.9285,214.59,214.48,2.98]
[1733884237742,2.9285,214.59,214.52,2.3294]
[1733884238438,5.2572,214.59,214.52,2.3294]
[1733884238649,2.9285,214.59,214.48,2.98]
[1733884239649,2.3292,214.55,214.48,5.3099]
[1733884241244,2.3293,214.53,214.47,2.96]
[1733884241944,2.3293,214.53,214.46,2.33]
[1733884242147,2.3293,214.53,214.46,5.29]
[1733884242649,2.3296,214.51,214.45,2.3302]
[1733884242848,11.48117442,214.54,214.45,2.96]
[1733884243148,2.9285,214.59,214.4,2.3307]
[1733884243149,2.3301,214.46,214.4,2.3307]
[1733884243349,2.3301,214.46,214.41,2.96]
[1733884243646,2.3302,214.45,214.39,2.3309]
[1733884243853,2.968,214.5,214.32,0.1635]
[1733884244049,11.48117442,214.48,214.37,2.96]
[1733884244346,2.3303,214.45,214.38,2.331]
[1733884244543,11.48117442,214.48,214.38,2.331]
[1733884244745,2.3299,214.49,214.39,5.48898]
[1733884244943,2.968,214.5,214.4,11.48117442]
[1733884245746,2.968,214.5,214.43,2.3303]
[1733884245944,2.968,214.5,214.43,5.2903]
[1733884246347,2.968,214.5,214.43,2.96]
[1733884246551,2.968,214.5,214.43,14.44117442]
[1733884247551,2.968,214.5,214.43,2.96]
[1733884248049,2.3299,214.49,214.43,5.2904]
[1733884248248,2.3299,214.49,214.43,2.96]
[1733884248955,2.968,214.5,214.46,2.3301]
[1733884249254,1.4712,214.53,214.46,2.3301]
[1733884250652,2.3296,214.51,214.46,2.3301]
[1733884251444,1.4712,214.53,214.43,2.96]
[1733884252055,2.3296,214.51,214.44,2.3303]
[1733884252255,1.4712,214.53,214.44,2.3303]
[1733884252958,1.4712,214.53,214.44,5.2903]
[1733884253659,2.3298,214.5,214.44,5.2903]
[1733884256250,1.4712,214.53,214.44,2.96]
[1733884256655,2.8849,214.56,214.46,11.48117442]
[1733884257553,2.8849,214.56,214.49,2.3298]
[1733884258656,2.3292,214.54,214.49,2.3298]
[1733884258857,2.8849,214.56,214.49,2.3298]
[1733884259561,2.8849,214.56,214.46,11.48117442]
[1733884259763,2.3286,214.6,214.5,2.96]
[1733884260465,4.0982,214.62,214.5,2.96]
[1733884260666,5.72281914,214.7,214.55,11.48117442]
[1733884260967,14.29277442,214.71,214.56,2.96]
[1733884261162,2.3278,214.68,214.61,2.3284]
[1733884261564,14.29277442,214.71,214.58,11.48117442]
[1733884261565,2.3275,214.7,214.58,11.48117442]
[1733884261769,2.8116,214.71,214.62,2.96]
[1733884262165,14.29277442,214.71,214.62,2.96]
[1733884263774,2.8116,214.71,214.62,2.96]
[1733884264366,2.8116,214.71,214.64,11.48117442]
[1733884264564,1.3775,214.76,214.64,11.48117442]
[1733884264968,2.3272,214.73,214.66,2.3279]
[1733884265562,1.3775,214.76,214.64,13.80937442]
[1733884265563,2.3275,214.7,214.64,13.80937442]
[1733884265768,11.48117442,214.74,214.63,2.96]
[1733884266167,2.7945,214.73,214.63,2.96]
[1733884267972,2.3274,214.72,214.65,2.328]
[1733884268363,2.7945,214.73,214.63,2.96]
[1733884268566,1.3775,214.76,214.67,11.48117442]
[1733884268769,8.35493384,214.82,214.67,11.48117442]
[1733884268969,1.4124,214.81,214.67,11.48117442]
[1733884269769,1.4124,214.81,214.69,2.3275]
[1733884269972,1.4124,214.81,214.7,2.96]
[1733884270869,1.4124,214.81,214.7,14.44117442]
[1733884271570,11.48117442,214.8,214.7,2.96]
[1733884271768,2.3271,214.74,214.7,2.96]
[1733884271968,11.48117442,214.8,214.64,11.48117442]
[1733884272171,2.3274,214.71,214.65,2.96]
[1733884272470,11.48117442,214.77,214.64,2.96]
[1733884272866,2.3275,214.7,214.65,5.53947615]
[1733884273469,11.48117442,214.74,214.61,11.48117442]
[1733884273673,11.48117442,214.71,214.61,2.96]
[1733884273863,1.389,214.7,214.61,8.53077894]
[1733884275469,2.328,214.66,214.61,8.53077894]
[1733884275671,2.328,214.66,214.61,5.57077894]
[1733884276176,2.3281,214.65,214.61,5.57077894]
[1733884276372,1.389,214.7,214.59,2.96]
[1733884277376,1.389,214.7,214.59,8.58761873]
[1733884277576,1.389,214.7,214.61,11.48117442]
[1733884277775,1.389,214.7,214.59,8.58761873]
[1733884277973,2.3281,214.65,214.59,8.58761873]
[1733884278576,2.3279,214.66,214.59,10.91631873]
[1733884278969,1.389,214.7,214.59,8.58761873]
[1733884279176,2.3278,214.67,214.6,2.3286]
[1733884279472,1.389,214.7,214.59,8.58761873]
[1733884279777,2.3275,214.71,214.64,2.3282]
[1733884280185,1.3697,214.82,214.68,11.48117442]
[1733884280383,2.8539,214.81,214.68,11.48117442]
[1733884281382,2.3266,214.79,214.71,2.3273]
[1733884281582,2.8539,214.81,214.72,2.96]
[1733884281982,2.3266,214.79,214.72,2.96]
[1733884282282,14.33507442,214.81,214.72,2.96]
[1733884282585,2.327,214.75,214.72,2.96]
[1733884282780,14.33507442,214.81,214.65,11.48117442]
[1733884282781,14.33507442,214.81,214.68,2.96]
[1733884283479,11.48117442,214.78,214.68,2.96]
[1733884283880,2.3272,214.73,214.68,2.96]
[1733884285286,14.33507442,214.81,214.68,14.44117442]
[1733884285486,2.8539,214.81,214.68,14.44117442]
[1733884285683,2.8539,214.81,214.71,2.3273]
[1733884285878,2.3266,214.79,214.68,14.44117442]
[1733884286981,2.3266,214.79,214.72,2.3273]
[1733884287577,14.33507442,214.81,214.68,14.44117442]
[1733884287775,14.33507442,214.81,214.68,2.96]
[1733884288284,14.33507442,214.81,214.67,2.96]
[1733884288782,2.3272,214.73,214.67,2.96]
[1733884288982,11.48117442,214.78,214.67,2.96]
[1733884289282,2.96,214.79,214.68,11.48117442]
[1733884289488,14.33507442,214.81,214.68,11.48117442]
[1733884289785,14.33507442,214.81,214.72,2.3273]
[1733884289786,2.3266,214.79,214.72,2.3273]
[1733884290080,2.8539,214.81,214.72,2.3273]
[1733884290284,2.3264,214.8,214.71,13.80847442]
[1733884290481,2.8539,214.81,214.71,11.48117442]
[1733884291588,2.3266,214.78,214.72,2.3273]
[1733884292490,11.48117442,214.89,214.74,11.48117442]
[1733884292784,20.81234144,214.88,214.75,2.96]
[1733884292985,11.65235275,214.87,214.75,5.2869]
[1733884293589,2.3262,214.82,214.75,5.2869]
[1733884294484,2.96,214.87,214.75,2.96]
[1733884294689,19.46727149,214.86,214.75,2.96]
[1733884294888,2.96,214.87,214.75,2.96]
[1733884294889,19.46797696,214.85,214.75,2.96]
[1733884295087,2.3266,214.79,214.75,2.96]
[1733884296699,2.3267,214.78,214.75,2.96]
[1733884297083,28.95561077,214.87,214.75,2.96]
[1733884297296,25.99561077,214.87,214.75,2.96]
[1733884297591,1.3665,214.88,214.75,2.96]
[1733884298890,1.3665,214.88,214.74,2.94]
[1733884299093,27.36001105,214.88,214.74,2.94]
[1733884299287,18.31415584,214.86,214.74,2.94]
[1733884299489,1.3665,214.88,214.74,2.94]
[1733884299993,2.3261,214.83,214.74,2.94]
[1733884301196,2.3262,214.82,214.76,2.3268]
[1733884302700,1.3665,214.88,214.74,2.94]
[1733884302993,241.9231962,214.98,214.8,18.31415584]
[1733884302994,211.77735204,214.98,214.8,18.31415584]
[1733884303195,1.3628,214.97,214.84,18.31415584]
[1733884303595,1.3628,214.97,214.9,2.3253]
[1733884303787,1.3628,214.97,214.9,5.2653]
[1733884304194,2.3247,214.96,214.9,5.2653]
[1733884304492,1.3628,214.97,214.9,2.94]
[1733884304697,2.325,214.93,214.9,2.94]
[1733884305197,2.3249,214.95,214.9,2.94]
[1733884306494,1.3628,214.97,214.9,2.94]
[1733884306495,3.6875,214.97,214.9,5.2653]
[1733884306694,3.6875,214.97,214.9,2.94]
[1733884306695,1.3628,214.97,214.9,2.94]
[1733884307100,2.8037,214.99,214.9,2.94]
[1733884307491,1.3805,215.03,214.95,2.3248]
[1733884307799,1.3805,215.03,214.96,2.94]
[1733884308101,2.3238,215.05,214.96,2.94]
[1733884308296,1.3805,215.07,214.96,2.94]
[1733884309206,2.324,215.02,214.96,2.94]
[1733884309394,1.3805,215.07,214.96,2.94]
[1733884310589,2.324,215.03,214.96,2.94]
[1733884311295,1.3805,215.07,214.96,2.94]
[1733884311496,193.4631962,215.25,215.01,18.31415584]
[1733884311698,2.788,215.19,215.02,2.94]
[1733884312000,2.3228,215.14,215.06,2.3236]
[1733884312200,5.6171071,215.18,215.06,2.3236]
[1733884312399,2.788,215.19,215.02,2.94]
[1733884312597,2.3224,215.18,215.02,2.94]
[1733884312802,2.788,215.19,215.02,2.94]
[1733884313303,2.788,215.19,215.03,2.94]
[1733884314798,2.788,215.19,215.06,2.3235]
[1733884314799,2.3227,215.15,215.06,2.3235]
[1733884315301,2.788,215.19,215.03,2.94]
[1733884315501,2.3229,215.13,215.03,2.94]
[1733884315700,2.788,215.19,215.03,2.94]
[1733884316004,2.3228,215.14,215.05,2.3237]
[1733884316202,2.788,215.19,215.05,2.94]
[1733884317908,18.31415584,215.16,215.05,2.94]
[1733884318100,1.4756,215.15,215.05,2.94]
[1733884318805,2.323,215.12,215.05,2.94]
[1733884320404,2.3229,215.13,215.05,2.94]
[1733884320605,18.31415584,215.18,215.05,2.94]
[1733884321307,2.3228,215.14,215.05,2.94]
[1733884322308,2.3226,215.15,215.07,2.3235]
[1733884323002,2.3228,215.14,215.07,2.3235]
[1733884323205,18.31415584,215.18,215.05,2.94]
[1733884323206,18.31415584,215.18,215.05,5.2636]
[1733884323510,2.788,215.19,215.06,2.94]
[1733884323713,2.788,215.19,215.08,2.3234]
[1733884324117,2.3226,215.15,215.06,2.94]
[1733884324315,2.788,215.19,215.06,5.2635]
[1733884324515,2.788,215.19,215.06,2.94]
[1733884325020,13.96,215.35,215.08,18.31415584]
[1733884325208,18.31415584,215.28,215.08,18.31415584]
[1733884325612,1.3583,215.27,215.08,18.31415584]
[1733884325811,5.49448303,215.25,215.08,18.31415584]
[1733884326514,5.49448303,215.25,215.12,2.3229]
[1733884326817,18.31415584,215.23,215.12,2.94]
[1733884327920,2.3224,215.18,215.12,2.94]
[1733884328216,18.31415584,215.23,215.12,2.94]
[1733884328612,1.3485,215.24,215.12,2.94]
[1733884328813,19.66265584,215.24,215.12,2.94]
[1733884330722,19.66265584,215.24,215.12,5.2629]
[1733884331119,11.4095497,215.23,215.12,5.2629]
[1733884331516,11.4095497,215.23,215.13,2.3228]
[1733884331721,2.3221,215.2,215.12,2.94]
[1733884332114,11.4095497,215.23,215.12,2.94]
[1733884332320,2.3222,215.19,215.12,2.94]
[1733884333225,2.3221,215.21,215.12,16.6724497]
[1733884333426,1.3485,215.24,215.12,5.2629]
[1733884334023,1.3485,215.24,215.12,2.94]
[1733884334024,2.3221,215.2,215.12,2.94]
[1733884334224,2.3221,215.2,215.13,2.3228]
[1733884335323,2.3222,215.19,215.12,5.263]
[1733884336423,1.3485,215.24,215.12,5.263]
[1733884336424,2.3221,215.21,215.13,2.3228]
[1733884336621,193.4631962,215.47,215.18,11.4095497]
[1733884336826,14.1850497,215.42,215.27,11.4095497]
[1733884337026,11.4095497,215.36,215.19,0.3356]
[1733884337222,11.4095497,215.33,215.2,2.92]
[1733884337724,2.3212,215.29,215.2,2.92]
[1733884337929,11.4095497,215.33,215.18,5.66451516]
[1733884338130,1.4821,215.35,215.19,2.92]
[1733884338131,11.4095497,215.3,215.19,2.92]
[1733884338323,11.4095497,215.3,215.18,5.66451516]
[1733884338525,11.4095497,215.3,215.19,2.92]
[1733884338932,11.6531397,215.3,215.19,2.92]
[1733884339131,11.4095497,215.27,215.19,2.92]
[1733884339432,11.4095497,215.27,215.17,2.92]
[1733884339433,2.322,215.22,215.17,2.92]
[1733884339636,1.4821,215.26,215.17,2.92]
[1733884339833,11.4095497,215.18,214.95,40.94796043]
[1733884340023,11.4095497,215.13,214.96,11.4095497]
[1733884340334,2.92,215.12,214.97,2.92]
[1733884340628,2.3234,215.09,215.01,5.46434235]
[1733884340936,4.3258,215.17,215.01,5.46434235]
[1733884340937,14.3295497,215.16,215.03,11.4095497]
[1733884341230,2.3233,215.1,215.01,5.46434235]
[1733884341532,2.92,215.16,215.01,5.46434235]
[1733884341533,18.26975032,215.13,215.01,5.46434235]
[1733884341925,2.3235,215.08,215.01,5.46434235]
[1733884342124,2.92,215.1,215.01,5.46434235]
[1733884342732,2.92,215.13,215.01,5.46434235]
[1733884343829,21.18975032,215.13,214.97,2.92]
[1733884344732,2.92,215.13,214.99,5.70701614]
[1733884344938,2.92,215.13,215.02,18.26975032]
[1733884345232,5.5523953,215.15,215.02,18.26975032]
[1733884345233,5.5523953,215.15,215.03,2.94]
[1733884346333,2.323,215.12,215.03,5.264]
[1733884347041,2.94,215.16,215.04,2.3238]
[1733884348038,8.58456357,215.16,215.04,2.3238]
[1733884348735,2.3227,215.15,215.05,2.3238]
[1733884349038,2.94,215.16,215.05,2.3238]
[1733884349236,2.3229,215.14,215.05,2.3238]
[1733884350234,21.20975032,215.16,214.99,5.70701614]
[1733884350434,19.4097702,215.15,214.99,5.70701614]
[1733884350639,18.26975032,215.12,214.99,5.70701614]
[1733884351643,2.94,215.16,214.99,5.70701614]
[1733884351644,21.20975032,215.16,214.99,5.70701614]
[1733884351840,14.59259432,215.15,215.0,2.94]
[1733884352139,2.94,215.14,215.0,2.94]
[1733884352340,2.94,215.14,215.03,2.324]
[1733884352737,2.323,215.12,215.03,2.324]
[1733884352937,9.77421903,215.17,215.03,2.324]
[1733884353139,14.60231482,215.16,215.0,2.94]
[1733884353346,14.60231482,215.16,214.99,5.70701614]
[1733884353347,27.64509385,215.15,214.99,5.70701614]
[1733884353536,19.45798688,215.14,214.99,5.70701614]
[1733884353739,19.45798688,215.13,214.99,5.70701614]
[1733884353936,19.45650758,215.12,214.99,5.70701614]
[1733884354248,21.20975032,215.16,214.99,5.70701614]
[1733884354448,27.65523921,215.15,214.99,5.70701614]
[1733884354639,2.3236,215.06,214.99,5.70701614]
[1733884354840,2.94,215.1,214.95,18.26975032]
[1733884355144,2.324,215.03,214.95,21.20975032]
[1733884355340,2.324,215.03,214.95,18.26975032]
[1733884355740,2.324,215.03,214.95,20.59455032]
[1733884356336,2.8994,215.05,214.92,2.92]
[1733884356542,2.8994,215.05,214.91,18.26975032]
[1733884356741,2.8994,215.05,214.9,2.92]
[1733884356742,2.3248,214.96,214.9,2.92]
[1733884357046,2.3248,214.96,214.88,2.92]
[1733884357348,2.3246,214.97,214.88,2.3256]
[1733884357543,2.8994,215.05,214.91,5.68468822]
[1733884357743,2.8994,215.05,214.91,23.95443854]
[1733884358547,2.3239,215.04,214.95,2.3247]
[1733884358747,2.3239,215.04,214.95,5.2447]
[1733884359341,1.4286,215.08,214.95,5.2447]
[1733884359342,1.4286,215.08,214.99,18.26975032]
[1733884359947,1.4286,215.08,215.01,2.3241]
[1733884360148,1.4286,215.08,214.99,18.26975032]
[1733884360149,1.4286,215.08,215.02,2.92]
[1733884362040,1.3727,215.13,215.02,2.92]
[1733884362642,2.3232,215.1,215.02,2.92]
[1733884362847,1.3727,215.13,215.02,2.92]
[1733884363246,2.92,215.12,214.95,18.26975032]
[1733884363452,27.6601763,215.11,214.96,2.92]
[1733884363749,19.46840877,215.1,214.96,2.92]
[1733884363945,11.66802094,215.09,214.96,2.92]
[1733884364249,11.66802094,215.09,214.91,23.95443854]
[1733884364447,2.3245,214.98,214.92,2.92]
[1733884364849,2.92,215.04,214.89,2.92]
[1733884365046,4.2315,215.03,214.89,2.92]
[1733884366350,4.2315,215.03,214.9,5.61171474]
[1733884368251,2.3248,214.95,214.9,5.61171474]
[1733884368558,4.2315,215.03,214.87,18.26975032]
[1733884369251,2.3248,214.95,214.87,20.59545032]
[1733884369451,4.2315,215.03,214.87,18.26975032]
[1733884369650,2.3245,214.98,214.91,2.3252]
[1733884369847,2.3245,214.98,214.85,5.4603091]
[1733884369848,4.2315,215.03,214.85,5.4603091]
[1733884370054,18.26975032,215.02,214.85,8.3803091]
[1733884370255,2.3246,214.97,214.86,2.3258]
[1733884370554,4.2315,215.03,214.88,18.26975032]
[1733884371353,18.26975032,215.02,214.85,5.4603091]
[1733884371756,2.3252,214.92,214.85,5.4603091]
[1733884371958,2.92,214.97,214.85,5.4603091]
[1733884372158,2.92,214.98,214.85,5.4603091]
[1733884372554,2.92,214.98,214.86,2.3258]
[1733884373056,2.92,214.98,214.87,2.3256]
[1733884373057,2.3248,214.96,214.87,2.3256]
[1733884373360,4.2315,215.03,214.85,5.4603091]
[1733884373361,2.92,215.01,214.85,5.4603091]
[1733884373757,4.2315,215.03,214.85,5.4603091]
[1733884374152,2.3245,214.99,214.91,2.3252]
[1733884374360,2.3245,214.99,214.9,2.92]
[1733884374959,4.2315,215.03,214.9,2.92]
[1733884376152,4.2315,215.03,214.9,5.2454]
[1733884376681,2.3241,215.02,214.95,2.3248]
[1733884377156,2.323,215.13,215.04,2.3239]
[1733884377457,2.32428412,215.12,215.05,2.92]
[1733884377762,2.32428412,215.12,215.07,18.26975032]
[1733884378554,2.32428412,215.12,215.07,20.59325032]
[1733884378757,2.32428412,215.12,215.07,18.26975032]
[1733884379155,2.32428412,215.12,215.09,2.3233]
[1733884380263,2.32428412,215.12,215.07,18.26975032]
[1733884380462,2.32428412,215.12,215.07,20.59325032]
[1733884380857,2.32428412,215.12,215.07,18.26975032]
[1733884381064,2.32428412,215.12,215.08,5.67587661]
[1733884382964,2.32428412,215.12,215.05,2.92]
[1733884383366,2.32428412,215.12,215.07,18.26975032]
[1733884383562,2.32428412,215.12,215.09,2.3233]
[1733884383769,2.32428412,215.12,215.07,18.26975032]
[1733884384771,2.818,215.16,215.07,18.26975032]
[1733884385274,5.1407,215.16,215.1,2.3232]
[1733884385573,5.1407,215.16,215.11,2.92]
[1733884385771,2.818,215.16,215.11,2.92]
[1733884386973,2.3221,215.2,215.13,2.3229]
[1733884387173,0.21539,215.23,215.11,21.18975032]
[1733884387978,0.21539,215.23,215.15,18.26975032]
[1733884388175,0.21539,215.23,215.17,2.3224]
[1733884388375,0.21539,215.23,215.18,3.1]
[1733884388774,0.21539,215.23,215.18,5.4223]